Cogmind - Beta 15 @@@ ROGUE MODE // 2025.05.27 @ 15:23:10 Player: Selene Result: Destroyed by G-50 Soldier with Heavy Laser Performance ------------- Evolutions (5) 2500 Regions Visited (9) 1800 Robots Destroyed (31) 155 Value Destroyed (1362) 1362 Prototype IDs (4) 80 Alien Tech Used (0) 0 Bonus (1679) 1679 TOTAL SCORE: 7576 Bonus ------- Pacifist 834 Follower Combat Kills 232 Registered with UFD 300 Met Optimus in HQ 500 Friendly Fire -187 Cogmind --------- Core Integrity 0/1000 Matter 39/300 Energy 99/100 System Corruption 15% Temperature Cool (9) Movement Core (50) Location -5/Upper Caves Parts ------- > --- POWER (1) -------- (None) > --- PROPULSION (4) --- (None) > --- UTILITY (10) ----- Armor Integrity Analyzer > --- WEAPON (2) ------- (None) > --- INVENTORY (5) ---- Light Ion Engine Light Nuclear Core Mini Smartbomb Launcher Remote Datajack Companion Sword Peak State ------------ > --- POWER ------------ Fission Core > --- PROPULSION ------- Improved Treads Overtuned Treads Armored Medium Treads Armored Medium Treads > --- UTILITY ---------- Scrap Suit Improved Heat Sink Coolant Injector Huge Storage Unit Machine Analyzer Improved Targeting Computer Armor Integrity Analyzer Makeshift Hacking Suite Tech Extrapolator > --- WEAPON ----------- KE Penetrator Companion Sword > --- INVENTORY -------- Scrap Suit Advanced Cooling System Improved Coolant Injector Small Matter Pod Matter Filter Kinecellerator Transmission Jammer Improved Heavy Armor Plating Shock Absorption System Makeshift System Shield Improved System Shield Authchip [Device] Improved Field Recycling Unit Heavy Laser Mass Driver Mini Grenade Launcher Mini Smartbomb Launcher Remote Datajack Power Maul Greatsword [Rating: 78] Favorites ----------- Power Light Nuclear Core Engine Makeshift Power Source Power Core Light Nuclear Core Propulsion Medium Treads Treads Medium Treads Leg Aluminum Leg Wheel Compact Wheel Utility Improved Heat Sink Device Improved Heat Sink Storage Huge Storage Unit Processor Improved Targeting Computer Hackware Makeshift Hacking Suite Protection Improved Light Armor Plating Weapon Coil Gun Energy Gun Advanced Beam Rifle Ballistic Gun Coil Gun Ballistic Cannon Assault Cannon Launcher Heavy Rocket Launcher Special Weapon Remote Datajack Slashing Weapon Companion Sword Build | -11 -10 -9 -8 -7 -7 -7 -7 -5 -5 ------- Run | Yrd Mat Mat Mat Fac Sto Rec Scr Fac Upp Slots Evolved 10 | . . 2 2 2 . . . 4 . Power . | . . . . . . . . . . Propulsion 2 | . . . . . . . . 2 . Utility 8 | . . 2 2 2 . . . 2 . Weapon . | . . . . . . . . . . Parts Attached 63 | 3 . . 3 . 9 10 13 25 . Power 6 | . . . . . 1 1 1 3 . Engine 2 | . . . . . . . 1 1 . Core 4 | . . . . . 1 1 . 2 . Reactor . | . . . . . . . . . . Propulsion 14 | 2 . . 1 . 2 3 1 5 . Treads 10 | . . . 1 . 2 2 1 4 . Leg 2 | 1 . . . . . 1 . . . Wheel 2 | 1 . . . . . . . 1 . Hover . | . . . . . . . . . . Flight . | . . . . . . . . . . Utility 27 | . . . 2 . 3 5 5 12 . Device 11 | . . . 1 . 1 4 1 4 . Storage 1 | . . . 1 . . . . . . Processor 8 | . . . . . . 1 3 4 . Hackware 4 | . . . . . . . . 4 . Protection 3 | . . . . . 2 . 1 . . Artifact . | . . . . . . . . . . Weapon 16 | 1 . . . . 3 1 6 5 . Energy Gun 2 | . . . . . 1 . . 1 . Energy Cannon . | . . . . . . . . . . Ballistic Gun 8 | 1 . . . . 1 1 3 2 . Ballistic Cannon 1 | . . . . . 1 . . . . Launcher 3 | . . . . . . . 2 1 . Special Weapon 1 | . . . . . . . . 1 . Impact Weapon . | . . . . . . . . . . Slashing Weapon 1 | . . . . . . . 1 . . Piercing Weapon . | . . . . . . . . . . Special Melee Weapon . | . . . . . . . . . . Unidentified Prototypes 3 | . . . . . 1 . 1 1 . Corrupted Parts 1 | . . . . . 1 . . . . System Corruption 2 | . . . . . 2 . . . . Parts Lost 46 | . . 2 3 . 5 . 11 20 5 Power 4 | . . . . . 1 . 1 2 . Propulsion 13 | . . 1 2 . 2 . 2 6 . Utility 21 | . . . 1 . 1 . 5 9 5 Weapon 8 | . . 1 . . 1 . 3 3 . Highest Loss Streak 25 | . . 2 2 . 5 . 7 20 25 To Critical Strikes 1 | . . . . . . . . 1 . Average Backups 15 | . . . 1 1 2 4 22 17 5 Power . | . . . . . . . . . 2 Propulsion 1 | . . . . . . . 2 . . Utility 8 | . . . 1 1 1 2 11 9 . Weapon 4 | . . . . . . 1 6 6 2 Tool/Special . | . . . . . . . . . . Unused Backups 23 | . . . . . . . 9 13 1 Power 1 | . . . . . . . . . 1 Propulsion 1 | . . . . . . . . 1 . Utility 14 | . . . . . . . 6 8 . Weapon 7 | . . . . . . . 3 4 . Tool/Special . | . . . . . . . . . . Average Slot Usage (%) 76 | . 42 23 18 . 18 67 95 78 35 Engine 1 | . . . . . . . 2 . . Core 3 | . . . . . 1 6 4 4 . Treads 12 | . . . 6 . 5 10 15 11 . Device 22 | . . . 6 . . 22 29 15 . Storage 5 | . . . . . . 3 7 4 . Processor 12 | . . . . . . 5 14 21 17 Protection 5 | . . . . . 4 7 7 . . Ballistic Gun 7 | . 14 7 . . 2 5 10 . . Peak Build Rating 78 | 3 3 3 7 . 21 34 57 78 27 Average Rating 39 | . 3 1 4 . 7 26 48 60 23 On Entrance 9 | . 3 3 1 . . 4 31 27 27 Naked Turns 289 | . . . 30 200 59 . . . . Heaviest Build 111 | 2 2 2 2 . 22 98 111 107 . Greatest Support 95 | 16 16 16 20 3 40 48 56 95 3 Greatest Overweight (x) 8 | . . . . . . 2 4 8 . Average Overweight (x) . | . . . . . . . 1 1 . Largest Inventory Capacity 25 | 5 5 5 25 5 5 25 25 25 5 Average Capacity 20 | 5 5 5 6 5 5 16 25 23 5 Most Carried 25 | 1 . . 3 1 4 9 25 25 5 Average Carried 17 | . . . 1 1 2 5 23 19 5 Final Capacity 25 | 5 5 5 25 5 5 25 25 5 5 Final Carried 21 | . . . 1 1 4 9 21 5 5 Class Distribution -------------------- 67% | Commander-Mutant 17% | Mutant 7% | Scavenger-Mutant 6% | Derelict-Mutant Dominant Class ---------------- Mutant | -10/Materials Mutant | -9/Materials Mutant | -8/Materials Mutant | -7/Factory Commander-Mutant | -7/Storage Commander-Mutant | -7/Recycling Commander-Mutant | -7/Scraptown Derelict-Mutant | -5/Factory Hacker-Mutant | -5/Upper Caves Resources | -11 -10 -9 -8 -7 -7 -7 -7 -5 -5 ----------- Run | Yrd Mat Mat Mat Fac Sto Rec Scr Fac Upp Matter Collected 1225 | 164 . . 85 . 164 178 520 114 . Remotely 206 | . . . . . . 99 107 . . Salvage Created 1341 | . . . . . 57 . 798 486 . Parts 67 | . . . . . 2 . 35 30 . Haulers Intercepted . | . . . . . . . . . . Recyclers Shooed 1 | . . . . . . . . 1 . Parts Field Recycled . | . . . . . . . . . . Retrieved Matter . | . . . . . . . . . . Parts Self-Destructed 13 | . . . . . . . 13 . . Prevented . | . . . . . . . . . . Kills | -11 -10 -9 -8 -7 -7 -7 -7 -5 -5 ------- Run | Yrd Mat Mat Mat Fac Sto Rec Scr Fac Upp Combat Hostiles Destroyed 28 | . . . . . 1 . 15 12 . Melee 6 | . . . . . . . . 6 . Guns 10 | . . . . . 1 . 8 1 . AOE 12 | . . . . . . . 7 5 . Classes Destroyed 12 | . . . . . 1 . 6 5 . Builder 2 | . . . . . . . . 2 . Swarmer 5 | . . . . . . . . 5 . Grunt 1 | . . . . . 1 . . . . Sentry 1 | . . . . . . . . 1 . Hunter 4 | . . . . . . . . 4 . Programmer 2 | . . . . . . . . 2 . Federalist 2 | . . . . . . . 2 . . Explorer 2 | . . . . . . . 2 . . Ranger 1 | . . . . . . . 1 . . Guru 1 | . . . . . . . 1 . . Scrapper 8 | . . . . . . . 8 . . Thug 1 | . . . . . . . 1 . . Butcher 1 | . . . . . . . 1 . . Best Kill Streak 9 | . . . . . 1 . 7 9 . Combat Bots Only 8 | . . . . . 1 . 7 8 . Max Kills in Single Turn 5 | . . . . . 1 . 2 5 . Gunslinging 1 | . . . . . . . 1 . . Exploded 4 | . . . . . . . 2 4 . Melee 1 | . . . . . . . . 1 . Uniques/NPCs Destroyed . | . . . . . . . . . . Combat | -11 -10 -9 -8 -7 -7 -7 -7 -5 -5 -------- Run | Yrd Mat Mat Mat Fac Sto Rec Scr Fac Upp Hostile Shots Fired 838 | . 27 46 118 27 196 18 119 259 28 Missed 297 | . 10 24 48 12 90 12 32 63 6 Hits 541 | . 17 22 70 15 106 6 87 196 22 Melee 1 | . . . . . . . . . 1 Projectile 540 | . 17 22 70 15 106 6 87 196 21 AOE 2 | . . . . . 1 . . 1 . Critical Strikes 15 | . . . 2 . 2 . 6 5 . Damage Taken 7722 | . 146 193 919 186 1076 50 1180 3503 469 Core 2349 | . 41 100 542 186 384 . 90 644 362 Absorbed by Shields 86 | . . . . . . . 86 . . Regen/Repaired (Parts) 2 | . . . . . . . . 2 . Core Remaining (%) 52 | 100 83 75 1 . . . 5 . . Volleys Fired 67 | . . . . . 12 . 36 19 . Largest 2 | . . . . . 2 . 2 2 . Hottest 89 | . . . . . 89 . 60 80 . Shots Fired 114 | . . . . . 25 . 60 29 . Gun 92 | . . . . . 24 . 48 20 . Cannon 1 | . . . . . 1 . . . . Launcher 18 | . . . . . . . 12 6 . Special 3 | . . . . . . . . 3 . Kinetic 81 | . . . . . 13 . 48 20 . Thermal 12 | . . . . . 12 . . . . Explosive 18 | . . . . . . . 12 6 . Electromagnetic . | . . . . . . . . . . Robot Hit Streak 7 | . . . . . 4 . 7 3 . Robot Miss Streak 3 | . . . . . 2 . 2 3 . Penetration Max 1 | . . . . . . . 1 1 . Secondary Targets 2 | . . . . . . . 2 . . Max Gunslinging Chain 1 | . . . . . . . 1 . . Shots Hit Robots 88 | . . . . . 14 . 35 39 . Core Hits 60 | . . . . . 3 . 31 26 . Critical Kills 1 | . . . . . . . . 1 . Critical Parts Destroyed 2 | . . . . . . . . 2 . Critical Strikes 5 | . . . . . . . . 5 . Destroy 3 | . . . . . . . . 3 . Melee Attacks 33 | . . . . . . . 1 32 . Impact . | . . . . . . . . . . Slashing 33 | . . . . . . . 1 32 . Piercing . | . . . . . . . . . . Sneak Attacks . | . . . . . . . . . . Combat Hostiles . | . . . . . . . . . . Follow-up Attacks 1 | . . . . . . . . 1 . Damage Inflicted 3805 | . . . 27 10 334 . 1675 1759 . Guns 1207 | . . . . . 314 . 731 162 . Cannons 20 | . . . . . 20 . . . . Explosions 1529 | . . . . . . . 944 585 . Melee 1012 | . . . . . . . . 1012 . Ramming 37 | . . . 27 10 . . . . . Kinetic 1057 | . . . . . 164 . 731 162 . Thermal 170 | . . . . . 170 . . . . Explosive 1529 | . . . . . . . 944 585 . Electromagnetic . | . . . . . . . . . . Impact . | . . . . . . . . . . Slashing 1012 | . . . . . . . . 1012 . Piercing . | . . . . . . . . . . Highest Corruption 15 | . . . . 3 6 6 1 8 15 Average Corruption 5 | . . . . 2 5 6 1 6 8 Corruption Purged . | . . . . . . . . . . Corruption Blocked . | . . . . . . . . . . Effects 48 | . . . . 4 25 17 . 2 . Message Errors 10 | . . . . 1 8 1 . . . Matter Fused 16 | . . . . . 7 8 . 1 . Heat Flow Errors 4 | . . . . 1 . 3 . . . Energy Discharges 5 | . . . . . 3 2 . . . Parts Fused 1 | . . . . . 1 . . . . Data Loss (minor) 9 | . . . . 1 4 3 . 1 . Data Loss (major) 2 | . . . . 1 1 . . . . Misfires 1 | . . . . . 1 . . . . Overload Shots . | . . . . . . . . . . Overflow Damage 34 | . . . . . . . 3 31 . Projectiles . | . . . . . . . . . . Explosions 24 | . . . . . . . 3 21 . Melee 10 | . . . . . . . . 10 . Knockbacks . | . . . . . . . . . . Impact . | . . . . . . . . . . Kinetic . | . . . . . . . . . . Secondary . | . . . . . . . . . . Self-Inflicted Damage 126 | . . . 19 4 . . . 103 . Shots 3 | . . . . . . . . 3 . Rammed 16 | . . . 11 5 . . . . . Targets Rammed 16 | . . . 11 5 . . . . . Kicked . | . . . . . . . . . . Crushed . | . . . . . . . . . . Highest Temperature 193 | . . . . 109 54 193 69 . . Average Temperature 39 | . . . . 58 23 94 21 . . Received Heat Transfer 1216 | . 12 48 117 36 300 18 586 36 63 Siege Activations . | . . . . . . . . . . Martial Activations . | . . . . . . . . . . Shielding Activations . | . . . . . . . . . . Robots Disrupted . | . . . . . . . . . . Combat Hostiles . | . . . . . . . . . . Robots Corrupted . | . . . . . . . . . . Combat Hostiles . | . . . . . . . . . . Parts Fried . | . . . . . . . . . . Impact Corruptions . | . . . . . . . . . . Robots Melted . | . . . . . . . . . . Combat Hostiles . | . . . . . . . . . . Parts Melted 1 | . . . . . . . 1 . . Heat Transferred 296 | . . . . . 296 . . . . Parts Sabotaged . | . . . . . . . . . . Parts Stolen . | . . . . . . . . . . Parts Stripped . | . . . . . . . . . . Power Chain Reactions . | . . . . . . . . . . Alert | -11 -10 -9 -8 -7 -7 -7 -7 -5 -5 ------- Run | Yrd Mat Mat Mat Fac Sto Rec Scr Fac Upp Maximum Alert Level . | . . . . . . . . . . Low Security (%) 100 | 100 100 100 100 100 100 100 . 100 . Level 1 . | . . . . . . . . . . Level 2 . | . . . . . . . . . . Level 3 . | . . . . . . . . . . Level 4 . | . . . . . . . . . . Level 5 . | . . . . . . . . . . High Security . | . . . . . . . . . . Max Security . | . . . . . . . . . . Peak Influence 127 | . . 30 30 55 45 78 . 127 . Initial 13 | . . . 8 13 13 . . . . Average 11 | . . 7 1 19 6 14 . 14 . Influence Increases 949 | . . 30 30 95 148 168 106 372 . Destroy 0b10 Robot/C 380 | . . . . . 20 60 60 240 . Destroy 0b10 Robot/NC 10 | . . . . . . . . 10 . Destroy Leader 50 | . . . . . . . . 50 . Allied During Kill 48 | . . . . . . 32 16 . . Successful Hack 52 | . . . . 5 23 16 . 8 . Select Force Hacks 60 | . . . . . . 60 . . . Disable Machine 45 | . . . . . 45 . . . . Destroy Structure 64 | . . . . . . . . 64 . Partial Spotted 15 | . . . . 15 . . . . . Lose Combat Pursuer 225 | . . 30 30 75 60 . 30 . . Influence Decreases 949 | . . 10 20 95 178 168 106 299 73 Entered New Map 74 | . . . 12 17 17 . . . 28 Time Decay 534 | . . 10 8 78 136 168 4 130 . Lost Part 239 | . . . . . 25 . . 169 45 Lost Ally 102 | . . . . . . . 102 . . Squads Dispatched 18 | . 2 1 . 5 4 . . 6 . Investigation 3 | . . 1 . . . . . 2 . Extermination 5 | . . . . 1 2 . . 2 . Reinforcement 10 | . 2 . . 4 2 . . 2 . Assault . | . . . . . . . . . . Garrison . | . . . . . . . . . . Intercept . | . . . . . . . . . . Searches Triggered . | . . . . . . . . . . Construction Impeded 2 | . . . . . . . . 2 . Haulers Reinforced 3 | . . . . 2 1 . . . . Active Scanning Responses . | . . . . . . . . . . Cargo Convoy Interrupts . | . . . . . . . . . . Stealth | -11 -10 -9 -8 -7 -7 -7 -7 -5 -5 --------- Run | Yrd Mat Mat Mat Fac Sto Rec Scr Fac Upp Distress Signals 6 | . . 1 3 . 2 . . . . Communications Jammed . | . . . . . . . . . . Distress Signals . | . . . . . . . . . . Times Spotted 137 | . 6 9 16 9 30 2 31 22 12 Peak Tracking Total 13 | . 4 9 13 4 7 1 6 9 12 Tactical Retreats 11 | . . 1 1 3 3 . 3 . . Traps | -11 -10 -9 -8 -7 -7 -7 -7 -5 -5 ------- Run | Yrd Mat Mat Mat Fac Sto Rec Scr Fac Upp Traps Triggered 5 | . . 1 . 3 1 . . . . Indirectly . | . . . . . . . . . . Trap Hack Attempts . | . . . . . . . . . . Triggered . | . . . . . . . . . . Disarmed . | . . . . . . . . . . Reprogrammed . | . . . . . . . . . . Reused . | . . . . . . . . . . Traps Extracted . | . . . . . . . . . . Installed . | . . . . . . . . . . Triggered . | . . . . . . . . . . Machines | -11 -10 -9 -8 -7 -7 -7 -7 -5 -5 ---------- Run | Yrd Mat Mat Mat Fac Sto Rec Scr Fac Upp Machines Disabled 7 | . . . . . 3 . 4 . . Max in Single Turn 3 | . . . . . 1 . 3 . . Machines Repaired . | . . . . . . . . . . Machines Dismantled . | . . . . . . . . . . Machines Sabotaged . | . . . . . . . . . . Overloaded Fab Kills . | . . . . . . . . . . Hacking | -11 -10 -9 -8 -7 -7 -7 -7 -5 -5 --------- Run | Yrd Mat Mat Mat Fac Sto Rec Scr Fac Upp Machines Accessed 21 | . . 1 . 4 2 7 4 3 . Terminals 11 | . . 1 . 3 2 4 . 1 . Fabricators 2 | . . . . 1 . . . 1 . Repair Stations . | . . . . . . . . . . Recycling Units 4 | . . . . . . 3 . 1 . Scanalyzers . | . . . . . . . . . . Garrison Access . | . . . . . . . . . . Total Hacks 54 | . . 3 . 8 3 17 15 8 . Successful 31 | . . . . 3 2 7 15 4 . Failed 23 | . . 3 . 5 1 10 . 4 . Catastrophic 5 | . . 1 . 1 . 3 . . . Database Lockouts . | . . . . . . . . . . Manual 23 | . . 3 . 6 1 8 . 5 . Terminals 20 | . . 3 . 6 3 6 . 2 . Fabricators 4 | . . . . 2 . . . 2 . Repair Stations . | . . . . . . . . . . Recycling Units 15 | . . . . . . 11 . 4 . Scanalyzers . | . . . . . . . . . . Garrison Access . | . . . . . . . . . . Terminal Hacks 19 | . . . . . 2 2 15 . . Record 10 | . . . . . . . 10 . . Part Schematic 1 | . . . . . . 1 . . . Robot Analysis 5 | . . . . . . 1 4 . . Open Door 2 | . . . . . 1 . 1 . . Branch Access Points 1 | . . . . . 1 . . . . Fabricator Hacks 1 | . . . . . . . . 1 . Load Schematic 1 | . . . . . . . . 1 . Repair Station Hacks . | . . . . . . . . . . Recycling Unit Hacks 4 | . . . . . . 3 . 1 . Retrieve Components 4 | . . . . . . 3 . 1 . Scanalyzer . | . . . . . . . . . . Garrison Access Hacks . | . . . . . . . . . . Unauthorized Hacks 6 | . . . . 3 . 2 . 1 . Terminals 3 | . . . . 3 . . . . . Assimilate 1 | . . . . 1 . . . . . Botnet 2 | . . . . 2 . . . . . Fabricators 1 | . . . . . . . . 1 . Recompile 1 | . . . . . . . . 1 . Repair Stations . | . . . . . . . . . . Recycling Units 2 | . . . . . . 2 . . . Tunnel 2 | . . . . . . 2 . . . Scanalyzers . | . . . . . . . . . . Garrison Access . | . . . . . . . . . . Data Cores Recovered . | . . . . . . . . . . Used . | . . . . . . . . . . Hacking Detections 15 | . . 1 . 4 3 5 . 2 . Full Trace Events 3 | . . . . . . 2 . 1 . Feedback Events . | . . . . . . . . . . Feedback Blocked . | . . . . . . . . . . Robot Schematics Acquired . | . . . . . . . . . . Robots Built . | . . . . . . . . . . Authchips . | . . . . . . . . . . Time . | . . . . . . . . . . Total Robot Build Rating . | . . . . . . . . . . Part Schematics Acquired 12 | . . . . . . 1 2 9 . Parts Built . | . . . . . . . . . . Authchips . | . . . . . . . . . . Time . | . . . . . . . . . . Total Part Build Rating . | . . . . . . . . . . Parts Repaired . | . . . . . . . . . . Time . | . . . . . . . . . . Parts Recycled . | . . . . . . . . . . Recycled Matter . | . . . . . . . . . . Retrieved Matter . | . . . . . . . . . . Retrieved Components 5 | . . . . . . 5 . . . Parts Scanalyzed . | . . . . . . . . . . Part Schematics Acquired . | . . . . . . . . . . Parts Damaged . | . . . . . . . . . . Bothacking | -11 -10 -9 -8 -7 -7 -7 -7 -5 -5 ------------ Run | Yrd Mat Mat Mat Fac Sto Rec Scr Fac Upp Used RIF Installer . | . . . . . . . . . . Robots Hacked 2 | . . . . . . . . 2 . Non-combat 2 | . . . . . . . . 2 . Combat . | . . . . . . . . . . Robot Hacks Applied 2 | . . . . . . . . 2 . parse_system 1 | . . . . . . . . 1 . find_chute 1 | . . . . . . . . 1 . Relay Couplers Released . | . . . . . . . . . . Fabnet Peak Effective % . | . . . . . . . . . . Robots Rewired . | . . . . . . . . . . Allies Hacked . | . . . . . . . . . . Hacks Repelled . | . . . . . . . . . . Allies | -11 -10 -9 -8 -7 -7 -7 -7 -5 -5 -------- Run | Yrd Mat Mat Mat Fac Sto Rec Scr Fac Upp Total Allies 10 | . . . . . 10 . . . . Largest Group 10 | . . . . . 10 10 7 . . Highest-Rated Group 173 | . . . . . 173 158 114 . . Highest-Rated Ally 29 | . . . . . 29 21 21 . . Total Orders . | . . . . . . . . . . Ally Attacks 52 | . . . . . . 25 27 . . Total Damage 738 | . . . . . . 364 374 . . Kills 6 | . . . . . . 3 3 . . Allies Corrupted . | . . . . . . . . . . Allies Melted 4 | . . . . . . . 4 . . Intel | -11 -10 -9 -8 -7 -7 -7 -7 -5 -5 ------- Run | Yrd Mat Mat Mat Fac Sto Rec Scr Fac Upp Active Infowar (turns) 436 | . . . 86 . . . . 350 . Sensors 2 | . . . . . . . . 2 . Traps 86 | . . . 86 . . . . . . Machine Analysis 344 | . . . . . . . . 344 . Jamming 4 | . . . . . . . . 4 . Robot Analysis Total 5 | . . . . . . 1 4 . . Derelict Logs Recovered . | . . . . . . . . . . Drone Launches . | . . . . . . . . . . Drone Recoveries . | . . . . . . . . . . Exploration | -11 -10 -9 -8 -7 -7 -7 -7 -5 -5 ------------- Run | Yrd Mat Mat Mat Fac Sto Rec Scr Fac Upp Turns Passed 7806 | 153 90 62 219 200 721 713 4593 1040 15 Spaces Moved 3693 | 267 91 99 224 388 379 324 1457 435 29 Core 1288 | 243 . 75 191 388 238 23 . 101 29 Treads 2218 | . . . 33 . 141 257 1457 330 . Legs 51 | 7 . . . . . 44 . . . Wheels 136 | 17 91 24 . . . . . 4 . Hover . | . . . . . . . . . . Flight . | . . . . . . . . . . Fastest Speed 50 | 50 100 50 50 50 50 50 240 50 50 Average Speed 181 | 55 100 62 67 50 90 200 287 197 50 Slowest Speed 480 | 120 100 100 170 50 160 320 480 410 50 Overloaded Moves . | . . . . . . . . . . Propulsion Burnouts . | . . . . . . . . . . Robots Hopped . | . . . . . . . . . . Potential Cave-ins . | . . . . . . . . . . Cave-ins Triggered . | . . . . . . . . . . Exploration Rate (%) 35 | 6 27 19 28 20 71 74 90 17 4 Regions Visited 9 Branch Regions 4 Pre-discovered Areas 2 | . . . . . . 2 . . . Known Exits Taken 3 | . . . . . 1 . 1 1 . Unknown Exits Taken 6 | 1 1 1 1 1 . 1 . . . Scrap Searched 7 | . . . . . . . 7 . . Spaces Dug 2 | . . . . . . . . 2 . Terrain Destroyed 137 | . . . . . . . 102 35 . Melee 2 | . . . . . . . . 2 . Projectile 6 | . . . . . . . 4 2 . AOE 129 | . . . . . . . 98 31 . Terrain Rammed 4 | . . . 4 . . . . . . Walls Destroyed . | . . . . . . . . . . Machines Disabled . | . . . . . . . . . . Actions | -11 -10 -9 -8 -7 -7 -7 -7 -5 -5 --------- Run | Yrd Mat Mat Mat Fac Sto Rec Scr Fac Upp Total 4623 | 272 90 98 280 393 728 385 1804 544 29 Wait 648 | . . . 29 1 318 39 256 5 . Move 3684 | 266 90 98 223 387 378 323 1456 434 29 Hop . | . . . . . . . . . . Pick Up 53 | 1 . . 3 . 3 5 27 14 . Fast Attach 31 | 3 . . . . 8 8 3 9 . Attach 30 | 1 . . 4 . 1 4 5 15 . Detach 6 | . . . . . . 3 . 3 . Swap 19 | . . . 6 . . 2 7 4 . Drop 27 | 1 . . . . 3 . 13 10 . Fire 67 | . . . . . 12 . 36 19 . Melee 32 | . . . . . . . 1 31 . Ram 9 | . . . 4 5 . . . . . Kick . | . . . . . . . . . . Crush 11 | . . . 11 . . . . . . Escape Stasis . | . . . . . . . . . . Rewire 6 | . . . . . 5 1 . . . Trap . | . . . . . . . . . . Miscellaneous . | . . . . . . . . . . Route ------- -11/Scrapyard -10/Materials -9/Materials -8/Materials -7/Factory (discovered 2 exits: [*Fac] / *Sto) -7/Storage (discovered 2 exits: [*Fac] / *Rec) -7/Recycling (discovered 2 exits: *Fac / *Scr) -7/Scraptown (discovered 2 exits: *Fac x2) -5/Factory (discovered 2 exits: *Upp x2) -5/Upper Caves History --------- Turn | Location | Event 10 | -11/Scrapyard | Discovered new exit (range 16) 154 | -11/Scrapyard | Entered Materials 229 | -10/Materials | Discovered new exit (range 16) 244 | -10/Materials | Entered another Materials area 244 | -9/Materials | Evolved 2 slots: Utility x2 298 | -9/Materials | Discovered new exit (range 15) 306 | -9/Materials | Entered another Materials area 306 | -8/Materials | Evolved 2 slots: Utility x2 310 | -8/Materials | Build established: Mutant 509 | -8/Materials | Core integrity fell below 50% 513 | -8/Materials | Discovered new exit (range 15) 517 | -8/Materials | Core integrity fell below 20% 525 | -8/Materials | Entered Factory 525 | -7/Factory | Evolved 2 slots: Utility x2 720 | -7/Factory | Discovered new exit (range 10) 725 | -7/Factory | Discovered new exit (range 12) 725 | -7/Factory | Entered Storage 752 | -7/Storage | Core integrity fell below 50% 759 | -7/Storage | Met 01-MTF 1063 | -7/Storage | Core integrity fell below 20% 1090 | -7/Storage | Discovered new exit (range 16) 1093 | -7/Storage | Lost 5 parts (1p2n1u1w) 1098 | -7/Storage | Identified exit to Recycling 1116 | -7/Storage | Assisted by bots powering up and referring to "LRC-V3" 1146 | -7/Storage | Used back door to open Recycling access 1407 | -7/Storage | Build established: Commander-Mutant 1446 | -7/Storage | Entered Recycling 1446 | -7/Recycling | Accompanied by 10 allies 1487 | -7/Recycling | Lost 3 allies 1728 | -7/Recycling | Discovered new exit (range 16) 2077 | -7/Recycling | Scanned before Scraplab entrance 2113 | -7/Recycling | Entered Scraplab 2133 | -7/Recycling | Discovered new exit (range 2) 2159 | -7/Recycling | Entered Scraptown 2159 | -7/Scraptown | Accompanied by 7 allies 2159 | -7/Scraptown | System corruption cleaned by C-Scrubber 2757 | -7/Scraptown | Discovered new exit (range 11) 2917 | -7/Scraptown | Visited Awakened 2949 | -7/Scraptown | Visited Red Mages 2987 | -7/Scraptown | Found Relay Coupler [Proto] 3083 | -7/Scraptown | Visited Spacefarers 3644 | -7/Scraptown | Visited CPS Storage 3954 | -7/Scraptown | Visited Symbiants 4028 | -7/Scraptown | Visited IN-MT5's Study 4136 | -7/Scraptown | Visited Cyclists 4226 | -7/Scraptown | Visited UFD Registry 4226 | -7/Scraptown | Registered with UFD as "Datamind" 4287 | -7/Scraptown | Entered Cyclist Reading Room 4485 | -7/Scraptown | Visited Supply Room 4549 | -7/Scraptown | Visited Supply Room 4638 | -7/Scraptown | Visited Observation Area 4683 | -7/Scraptown | Visited LU-1G1's Boring Crew 4801 | -7/Scraptown | Visited DA-N13 Charitable Foundation 4814 | -7/Scraptown | Found DCF Scrap (28 items) 4988 | -7/Scraptown | Visited Analyses Database 5139 | -7/Scraptown | Visited Science Testing Area 5196 | -7/Scraptown | Visited Sword Containment 5244 | -7/Scraptown | Visited Scrap Suit Storage 5264 | -7/Scraptown | Found Scrap Suit 5270 | -7/Scraptown | Found Scrap Suit 5951 | -7/Scraptown | Met Optimus 5951 | -7/Scraptown | Accepted into 0bPrime 6351 | -7/Scraptown | Civil war broke out across Scraptown 6458 | -7/Scraptown | Lost 14 allies 6473 | -7/Scraptown | Identified exit to Factory 6627 | -7/Scraptown | Optimus destroyed in the chaos of civil war 6705 | -7/Scraptown | Build established: Mutant 6735 | -7/Scraptown | Destroyed 7 combat bots 6737 | -7/Scraptown | Lost 3 parts (1u2w) 6752 | -7/Scraptown | Entered Factory 6752 | -5/Factory | Evolved 4 slots: Propulsion x2, Utility x2 6764 | -5/Factory | Lost 3 allies 6783 | -5/Factory | Lost 7 parts (1p2n3u1w) 6898 | -5/Factory | Tech Extrapolator generated special schematic: Machine Rigger 7066 | -5/Factory | Build established: Derelict-Mutant 7069 | -5/Factory | Tech Extrapolator generated special schematic: Deep Structural Scanner 7135 | -5/Factory | Found Prototype Launcher 7386 | -5/Factory | Identified Mni. Smartbomb Launcher 7421 | -5/Factory | Discovered new exit (range 8) 7575 | -5/Factory | Build established: Scavenger-Mutant 7744 | -5/Factory | Destroyed 8 combat bots 7768 | -5/Factory | Core integrity fell below 50% 7785 | -5/Factory | Discovered new exit (range 9) 7791 | -5/Factory | Identified exit to Upper Caves 7792 | -5/Factory | Entered Upper Caves 7798 | -5/Upper Caves | Attracted the attention of an 0b10 outpost 7802 | -5/Upper Caves | Core integrity fell below 20% 7805 | -5/Upper Caves | Attracted the attention of an 0b10 checkpoint 7806 | -5/Upper Caves | System corruption reached 10% 7807 | -5/Upper Caves | Destroyed by G-50 Soldier with Heavy Laser Last Messages --------------- 07790_ System corrupted: Matter fused (-10). 07791_ EXIT=IDENTIFIED: UPPER CAVES LOCATION=UPPER CAVES GOAL=ESCAPE 07797_ G-50 Soldier springs to life. 07798_ Y-72 Warden: "DETECTED UNIDENTIFIED DERELICT." 07802_ Y-72 Warden: "REQUESTING BACKUP." 07802_ Imp. Signal Interpreter destroyed. 07804_ Penetrated by Slug. 07805_ Y-64 Sentinel: "INTERCEPTING UNREGISTERED DERELICT." 07805_ Mak. System Shield destroyed. 07805_ Authchip [Device] destroyed. 07805_ Tech Extrapolator destroyed. 07805_ System corrupted by crushing effect (+2). 07805_ System corrupted by crushing effect (+4). 07805_ System corrupted by crushing effect (+1). 07805_ Knocked back. 07806_ Mak. Hacking Suite destroyed. Map ----- +----------------------------------------------------+ | | | ?????????????????????????????????????????????????? | | ?????????????????????????????????????????????????? | | ?????????????????????????????????????????????????? | | ?????????????????????????????????????????????????? | | ?????????????????????????????????????????????????? | | ?????????????????????????????????????????????????? | | ?????????????????????????????????????????????????? | | ?????????????????????????????????????????????????? | | ?????????????????????????????????????????????????? | | ?????????????????????????????????????????????????? | | ?????????????????????????????????????????????????? | | ?????????????????????????????????????????????????? | | ???????????????????????############??????????????? | | ???????????????????????# #??????????????? | | ???????????????????????# ### ### #??????????????? | | ???????????????????????# # "#????????????????? | | ???????????????????????# # "#????????????????? | | ???????????????????????# # "#????????????????? | | ??????????????????????## ## "#????????????????? | | ??????????????????????#;s# "#????????????????? | | ???????????????????????#s#""""""#????????????????? | | ???????????????????????# ######## #??????????????? | | ???????????????????????# #??????????????? | | ???????????????????????## bg ### #???????????????? | | ????????????????????????#@g #??????????????????? | | ????????????????????????# ##??????????????????? | | ??????????????????????### ##???????????????????? | | ??????????????????????# g#????????????????????? | | ?????????????????????# b ?????????????????? | | ?????????????????? Y #?????????????? | | ??????????????? # ## #?????????????? | | ???????????? ##### ## #? #?????????????? | | ????????????? ??????# ?# ? #?????????????? | | ?????????????????????#??###? #?????????????? | | ????????????????????????????? #?????????????? | | ?????????????????????????????## ##?????????????? | | ???????????????????????????????# #??????????????? | | ????????????????????????????????###??????????????? | | ?????????????????????????????????????????????????? | | ?????????????????????????????????????????????????? | | ?????????????????????????????????????????????????? | | ?????????????????????????????????????????????????? | | ?????????????????????????????????????????????????? | | ?????????????????????????????????????????????????? | | ?????????????????????????????????????????????????? | | ?????????????????????????????????????????????????? | | ?????????????????????????????????????????????????? | | ?????????????????????????????????????????????????? | | ?????????????????????????????????????????????????? | +----------------------------------------------------+ Best States ------------- Heat Dissipation 54 Coolant Potential 65 Energy Generation 18 Energy Capacity 310 Matter Stores 300 Matter Capacity 300 Sight Range 16 Terrain Scan Density 135 Jamming Range 12 Corruption Block 4 Armor Coverage 375 Evasion (%) 55 Targeting Accuracy 6 Armor Integrity Analysis 30 Recoil Reduction 4 Matter Filtering 30 Offensive Hacking 11 Defensive Hacking 23 Authchip Count 1 Trap Extractor Capacity 6 Item Schematics ----------------- Gravmag System | -7/Recycling | Hacked Spk. Treads | -7/Scraptown | Extrapolated Spk. Medium Treads | -7/Scraptown | Extrapolated Mak. Leg | -5/Factory | Extrapolated Machine Rigger | -5/Factory | Extrapolated Deep Structural Scanner | -5/Factory | Extrapolated Mak. Power Source | -5/Factory | Extrapolated Mak. Coolant Network | -5/Factory | Extrapolated Mapping Drone Bay | -5/Factory | Extrapolated Bore Cannon | -5/Factory | Extrapolated Multitool | -5/Factory | Extrapolated 0b10 Decoder Chip [Skirmisher] | -5/Factory | Extrapolated Robot Schematics ------------------ None Fabricated ------------ Nothing Repaired ---------- Nothing Alien Tech Used ----------------- None Achievements -------------- None Challenges ------------ None Game ------ Seed RapidVortexChainsaw Manual? 0 Play Time 01:21:13 Cumulative 203.7 hours Start 2025.05.26 @ 22:44:50 End 2025.05.27 @ 15:23:10 Sessions 36 Manual Loads 0 Difficulty Rogue Special Mode None Game No. 131 Rogue 127 Adventurer 4 Explorer 0 Win Type - Total 7 Types 6/0/1/0/0/0/0/0/0/0 Lore% 78 Gallery% 69 Achievement% 60 Wizard Run 0 Options --------- Layout 1 ASCII 0 Keyboard 1 Movement Vi Keybinds 1 Fullscreen 2 Font 24/Smallcaps Map View 50x35 Zoom Use 0% Tactical HUD 1 Map Filters NONE Filters NONE Steam 1 RUN: ca4bf82b-c178-492e-9f86-4264b70c7670